fUSD/lending_fUSD_20250207
["ID","MTS","AMOUNT","RATE_DAILY","PERIOD"]
[352127936,1738956646221,-500.0,0.00016573,2]
[352127938,1738956646231,-500.0,0.00016573,2]
[352127940,1738956646240,-500.0,0.00016573,2]
[352127942,1738956646250,-500.0,0.00016573,2]
[352127944,1738956646259,-500.0,0.00016573,2]
[352127946,1738956646269,-500.0,0.00016573,2]
[352127948,1738956646278,-500.0,0.00016573,2]
[352127950,1738956646287,-500.0,0.00016573,2]
[352127952,1738956646297,-515.34059981,0.00016573,2]
[352127954,1738956646306,-500.0,0.00016573,2]
[352127955,1738956646316,-500.0,0.00016573,2]
[352127957,1738956646326,-500.0,0.00016573,2]
[352127959,1738956646336,-500.0,0.00016573,2]
[352127961,1738956646354,-500.0,0.00016573,2]
[352127964,1738956646368,-506.62521492,0.00016573,2]
[352127966,1738956646378,-500.0,0.00016573,2]
[352127968,1738956646388,-500.0,0.00016573,2]
[352127969,1738956646398,-500.0,0.00016573,2]
[352127970,1738956646463,-500.0,0.00016573,2]
[352127971,1738956646473,-500.0,0.00016573,2]
[352127972,1738956646483,-500.0,0.00016573,2]
[352127973,1738956646492,-500.0,0.00016573,2]
[352127974,1738956646502,-500.0,0.00016573,2]
[352127975,1738956646511,-500.0,0.00016573,2]
[352127976,1738956646521,-553.15,0.00016573,2]
[352127977,1738956646531,-500.0,0.00016573,2]
[352127978,1738956646540,-500.0,0.00016573,2]
[352127979,1738956646550,-500.0,0.00016573,2]
[352127981,1738956646560,-500.0,0.00016573,2]
[352127983,1738956646571,-500.0,0.00016573,2]
[352127984,1738956646581,-500.0,0.00016573,2]
[352127986,1738956646590,-500.0,0.00016573,2]
[352127988,1738956646600,-500.0,0.00016573,2]
[352127990,1738956646610,-500.0,0.00016573,2]
[352127992,1738956646620,-500.0,0.00016573,2]
[352127994,1738956646629,-500.0,0.00016573,2]
[352127996,1738956646639,-500.0,0.00016573,2]
[352127998,1738956646652,-500.0,0.00016573,2]
[352128000,1738956646661,-500.0,0.00016573,2]
[352128002,1738956646671,-500.0,0.00016573,2]
[352128004,1738956646680,-500.0,0.00016573,2]
[352128006,1738956646689,-500.0,0.00016573,2]
[352128008,1738956646698,-500.0,0.00016573,2]
[352128010,1738956646707,-500.0,0.00016573,2]
[352128012,1738956646718,-500.0,0.00016573,2]
[352128014,1738956646727,-597.82650643,0.00016573,2]
[352128016,1738956646736,-500.0,0.00016573,2]
[352128018,1738956646745,-500.0,0.00016573,2]
[352128020,1738956646753,-500.0,0.00016573,2]
[352128022,1738956646762,-500.0,0.00016573,2]
[352128024,1738956646771,-540.67,0.00016573,2]
[352128026,1738956646781,-500.0,0.00016573,2]
[352128028,1738956646791,-500.0,0.00016573,2]
[352128030,1738956646801,-557.1,0.00016573,2]
[352128032,1738956646810,-500.0,0.00016573,2]
[352128033,1738956646820,-500.0,0.00016573,2]
[352128035,1738956646830,-500.0,0.00016573,2]
[352128037,1738956646840,-500.0,0.00016573,2]
[352128039,1738956646850,-500.0,0.00016573,2]
[352128041,1738956646860,-500.0,0.00016573,2]
[352128043,1738956646870,-500.0,0.00016573,2]
[352128045,1738956646880,-500.0,0.00016573,2]
[352128047,1738956646890,-573.1196309,0.00016573,2]
[352128050,1738956646901,-500.0,0.00016573,2]
[352128051,1738956646911,-500.0,0.00016573,2]
[352128053,1738956646922,-500.0,0.00016573,2]
[352128055,1738956646933,-500.0,0.00016573,2]
[352128057,1738956646942,-500.0,0.00016573,2]
[352128059,1738956646952,-500.0,0.00016573,2]
[352128062,1738956646964,-500.0,0.00016573,2]
[352128063,1738956646973,-500.0,0.00016573,2]
[352128065,1738956646983,-500.0,0.00016573,2]
[352128067,1738956646992,-500.0,0.00016573,2]
[352128069,1738956647002,-500.0,0.00016573,2]
[352128071,1738956647012,-500.0,0.00016573,2]
[352128073,1738956647021,-500.0,0.00016573,2]
[352128075,1738956647031,-500.0,0.00016573,2]
[352128078,1738956647041,-500.0,0.00016573,2]
[352128079,1738956647051,-500.0,0.00016573,2]
[352128081,1738956647061,-500.0,0.00016573,2]
[352128083,1738956647071,-500.0,0.00016573,2]
[352128085,1738956647080,-500.0,0.00016573,2]
[352128088,1738956647094,-500.0,0.00016573,2]
[352128090,1738956647104,-500.0,0.00016573,2]
[352128091,1738956647114,-500.0,0.00016573,2]
[352128093,1738956647124,-500.0,0.00016573,2]
[352128095,1738956647133,-500.0,0.00016573,2]
[352128097,1738956647142,-500.0,0.00016573,2]
[352128099,1738956647151,-530.71,0.00016573,2]
[352128101,1738956647159,-500.0,0.00016573,2]
[352128103,1738956647168,-500.0,0.00016573,2]
[352128105,1738956647178,-500.0,0.00016573,2]
[352128107,1738956647187,-500.0,0.00016573,2]
[352128109,1738956647197,-500.0,0.00016573,2]
[352128111,1738956647206,-500.0,0.00016573,2]
[352128113,1738956647215,-500.0,0.00016573,2]
[352128115,1738956647224,-500.0,0.00016573,2]
[352128117,1738956647234,-500.0,0.00016573,2]
[352128119,1738956647243,-500.0,0.00016573,2]
[352128121,1738956647252,-500.0,0.00016573,2]
[352128123,1738956647262,-326.63072428,0.00016573,2]
[352128125,1738956647271,-500.0,0.00016573,2]
[352128126,1738956647280,-2942.64,0.00016573,2]
[352128128,1738956647289,-500.0,0.00016573,2]
[352128130,1738956647299,-500.0,0.00016573,2]
[352128132,1738956647308,-500.0,0.00016573,2]
[352128134,1738956647317,-500.0,0.00016573,2]
[352128136,1738956647328,-500.0,0.00016573,2]
[352128138,1738956647337,-1743.62,0.00016573,2]
[352128140,1738956647347,-500.0,0.00016573,2]
[352128142,1738956647357,-500.0,0.00016573,2]
[352128144,1738956647366,-720.06,0.00016573,2]
[352128147,1738956647377,-500.0,0.00016573,2]
[352128148,1738956647395,-5046.81,0.00016573,2]
[352128151,1738956647406,-500.0,0.00016573,2]
[352128153,1738956647415,-500.0,0.00016573,2]
[352128155,1738956647424,-500.0,0.00016573,2]
[352128156,1738956647434,-500.0,0.00016573,2]
[352128158,1738956647443,-500.0,0.00016573,2]
[352128160,1738956647452,-500.0,0.00016573,2]
[352128162,1738956647462,-500.0,0.00016573,2]
[352128164,1738956647471,-500.0,0.00016573,2]
[352128166,1738956647480,-500.0,0.00016573,2]
[352128168,1738956647490,-500.0,0.00016573,2]
[352128171,1738956647499,-154.07573376,0.00016573,2]
[352128173,1738956647509,-1994.07,0.00016573,2]
[352128175,1738956647519,-500.0,0.00016573,2]
[352128176,1738956647529,-500.0,0.00016573,2]
[352128178,1738956647539,-1138.25,0.00016573,2]
[352128180,1738956647549,-500.0,0.00016573,2]
[352128182,1738956647558,-500.0,0.00016573,2]
[352128184,1738956647568,-500.0,0.00016573,2]
[352128186,1738956647579,-500.0,0.00016573,2]
[352128188,1738956647588,-346.28420867,0.00016573,2]
[352128190,1738956647598,-3516.18,0.00016573,2]
[352128193,1738956647609,-500.0,0.00016573,2]
[352128194,1738956647619,-500.0,0.00016573,2]
[352128196,1738956647628,-500.0,0.00016573,2]
[352128198,1738956647638,-1024.51,0.00016573,2]
[352128200,1738956647648,-500.0,0.00016573,2]
[352128202,1738956647657,-500.0,0.00016573,2]
[352128204,1738956647667,-500.0,0.00016573,2]
[352128206,1738956647676,-2173.49,0.00016573,2]
[352128208,1738956647686,-612.99,0.00016573,2]
[352128210,1738956647695,-500.0,0.00016573,2]
[352128212,1738956647704,-1229.36,0.00016573,2]
[352128214,1738956647714,-500.0,0.00016573,2]
[352128216,1738956647723,-2227.07,0.00016573,2]
[352128218,1738956647732,-500.0,0.00016573,2]
[352128220,1738956647742,-500.0,0.00016573,2]
[352128222,1738956647752,-2301.73,0.00016573,2]
[352128224,1738956647762,-1183.89,0.00016573,2]
[352128226,1738956647771,-500.0,0.00016573,2]
[352128228,1738956647781,-518.71,0.00016573,2]
[352128230,1738956647791,-500.0,0.00016573,2]
[352128232,1738956647801,-500.0,0.00016573,2]
[352128234,1738956647811,-2401.62,0.00016573,2]
[352128236,1738956647821,-277.98685743,0.00016573,2]
[352128238,1738956647831,-2133.71,0.00016573,2]
[352128240,1738956647840,-500.0,0.00016573,2]
[352128242,1738956647850,-501.43446108,0.00016573,2]
[352128244,1738956647860,-500.0,0.00016573,2]
[352128246,1738956647870,-500.0,0.00016573,2]
[352128248,1738956647880,-500.0,0.00016573,2]
[352128250,1738956647890,-300.0,0.00016573,2]
[352128252,1738956647900,-500.0,0.00016573,2]
[352128254,1738956647910,-2304.96,0.00016573,2]
[352128255,1738956647920,-500.0,0.00016573,2]
[352128257,1738956647929,-500.0,0.00016573,2]
[352128258,1738956647940,-500.0,0.00016573,2]
[352128260,1738956647949,-4101.49,0.00016573,2]
[352128262,1738956647960,-629.73,0.00016573,2]
[352128264,1738956647971,-500.0,0.00016573,2]
[352128266,1738956647981,-500.0,0.00016573,2]
[352128268,1738956647991,-10904.08,0.00016573,2]
[352128270,1738956647999,-500.0,0.00016573,2]
[352128272,1738956648009,-500.0,0.00016573,2]
[352128274,1738956648020,-500.0,0.00016573,2]
[352128276,1738956648031,-1990.52,0.00016573,2]
[352128278,1738956648041,-500.0,0.00016573,2]
[352128280,1738956648051,-500.0,0.00016573,2]
[352128282,1738956648062,-500.0,0.00016573,2]
[352128284,1738956648072,-516.12113071,0.00016573,2]
[352128286,1738956648083,-500.0,0.00016573,2]
[352128288,1738956648094,-500.0,0.00016573,2]
[352128290,1738956648109,-500.0,0.00016573,2]
[352128291,1738956648119,-500.0,0.00016573,2]
[352128293,1738956648130,-500.0,0.00016573,2]
[352128295,1738956648140,-500.0,0.00016573,7]
[352128297,1738956648150,-1994.74,0.00016573,2]
[352128299,1738956648161,-500.0,0.00016573,2]
[352128301,1738956648171,-500.0,0.00016573,2]
[352128303,1738956648182,-500.0,0.00016573,2]
[352128305,1738956648192,-500.0,0.00016573,2]
[352128307,1738956648204,-500.0,0.00016573,2]
[352128309,1738956648214,-500.0,0.00016573,2]
[352128311,1738956648225,-500.0,0.00016573,2]
[352128313,1738956648236,-500.0,0.00016573,2]
[352128315,1738956648246,-500.0,0.00016573,2]
[352128317,1738956648257,-2018.74,0.00016573,2]
[352128319,1738956648269,-442.25225934,0.00016573,2]
[352128321,1738956648281,-500.0,0.00016573,2]
[352128323,1738956648292,-500.0,0.00016573,2]
[352128325,1738956648303,-500.0,0.00016573,2]
[352128327,1738956648315,-508.50356398,0.00016573,2]
[352128329,1738956648326,-500.0,0.00016573,2]
[352128331,1738956648336,-500.0,0.00016573,2]
[352128333,1738956648347,-3137.7514855,0.00016573,2]
[352128335,1738956648358,-500.0,0.00016573,2]
[352128337,1738956648369,-500.0,0.00016573,2]
[352128339,1738956648379,-300.0,0.00016573,2]
[352128341,1738956648390,-1695.7,0.00016573,2]
[352128343,1738956648402,-500.0,0.00016573,2]
[352128345,1738956648412,-506.52513416,0.00016573,2]
[352128347,1738956648425,-3966.69,0.00016573,2]
[352128349,1738956648436,-662.29,0.00016573,2]
[352128351,1738956648448,-500.0,0.00016574,2]
[352128353,1738956648460,-500.0,0.00016574,2]
[352128355,1738956648471,-500.0,0.00016574,2]
[352128357,1738956648482,-500.0,0.00016574,2]
[352128359,1738956648494,-500.0,0.00016574,2]
[352128361,1738956648505,-544.64241206,0.00016574,2]
[352128363,1738956648517,-500.0,0.00016574,2]
[352128365,1738956648528,-500.0,0.00016574,2]
[352128367,1738956648540,-291.43509689,0.00016574,2]
[352128369,1738956648552,-500.0,0.00016574,2]
[352128371,1738956648564,-500.0,0.00016574,2]
[352128373,1738956648578,-500.0,0.00016574,2]
[352128375,1738956648588,-500.0,0.00016574,2]
[352128377,1738956648599,-500.0,0.00016574,2]
[352128379,1738956648611,-1062.51,0.00016574,2]
[352128381,1738956648622,-500.0,0.00016574,2]
[352128383,1738956648633,-500.0,0.00016574,2]
[352128385,1738956648643,-1219.59,0.00016574,2]
[352128387,1738956648655,-857.35,0.00016574,2]
[352128389,1738956648666,-500.0,0.00016574,2]
[352128391,1738956648677,-500.0,0.00016574,2]
[352128393,1738956648688,-526.56,0.00016574,2]
[352128395,1738956648698,-500.0,0.00016574,2]
[352128397,1738956648709,-500.0,0.00016574,2]
[352128399,1738956648721,-515.22861288,0.00016574,2]
[352128401,1738956648731,-500.0,0.00016574,2]
[352128403,1738956648742,-547.58,0.00016574,2]
[352128405,1738956648752,-500.0,0.00016574,2]
[352128407,1738956648762,-500.0,0.00016574,2]
[352128409,1738956648772,-500.0,0.00016574,2]
[352128411,1738956648784,-1136.81,0.00016574,2]
[352128413,1738956648796,-533.79,0.00016574,2]
[352128415,1738956648806,-500.0,0.00016574,2]
[352128417,1738956648818,-500.0,0.00016574,2]
[352128419,1738956648828,-1186.33,0.00016574,2]
[352128421,1738956648839,-500.0,0.00016574,2]
[352128423,1738956648851,-529.03,0.00016574,2]
[352128425,1738956648862,-1230.22,0.00016574,2]
[352128427,1738956648872,-500.0,0.00016574,2]
[352128428,1738956648883,-1245.85,0.00016574,2]
[352128430,1738956648893,-500.0,0.00016574,2]
[352128431,1738956648905,-1446.41,0.00016574,2]
[352128432,1738956648916,-564.24,0.00016574,2]
[352128433,1738956648927,-500.0,0.00016574,2]
[352128434,1738956648937,-550.96,0.00016574,2]
[352128435,1738956648948,-500.0,0.00016574,2]
[352128436,1738956648959,-1579.64,0.00016574,2]
[352128437,1738956648970,-520.2,0.00016574,2]
[352128438,1738956648981,-1605.34,0.00016574,2]
[352128439,1738956648992,-500.0,0.00016574,2]
[352128440,1738956649002,-1579.05,0.00016574,2]
[352128441,1738956649014,-551.37,0.00016574,2]
[352128442,1738956649025,-601.14,0.00016574,2]
[352128443,1738956649035,-500.0,0.00016574,2]
[352128444,1738956649045,-1184.1,0.00016574,2]
[352128446,1738956649056,-678.58,0.00016574,2]
[352128448,1738956649068,-500.0,0.00016574,2]
[352128450,1738956649078,-515.45,0.00016574,2]
[352128452,1738956649090,-521.99,0.00016574,2]
[352128454,1738956649100,-552.13,0.00016574,2]
[352128456,1738956649110,-2651.33,0.00016574,2]
[352128458,1738956649121,-615.95,0.00016574,2]
[352128460,1738956649132,-500.0,0.00016574,2]
[352128462,1738956649145,-500.0,0.00016574,2]
[352128464,1738956649155,-500.0,0.00016574,2]
[352128466,1738956649166,-500.0,0.00016574,2]
[352128468,1738956649176,-300.0,0.00016574,2]
[352128470,1738956649187,-500.0,0.00016575,2]
[352128472,1738956649197,-174.51185051,0.00016575,2]
[352128474,1738956649208,-500.0,0.00016575,2]
[352128476,1738956649219,-500.0,0.00016575,2]
[352128478,1738956649230,-500.0,0.00016575,2]
[352128480,1738956649241,-297.96,0.00016575,2]
[352128483,1738956649252,-500.0,0.00016575,2]
[352128485,1738956649263,-500.0,0.00016575,2]
[352128487,1738956649274,-500.0,0.00016575,2]
[352128489,1738956649284,-500.0,0.00016575,2]
[352128491,1738956649296,-500.0,0.00016575,2]
[352128493,1738956649307,-500.0,0.00016575,2]
[352128495,1738956649317,-500.0,0.00016575,2]
[352128497,1738956649328,-500.0,0.00016575,2]
[352128499,1738956649338,-500.0,0.00016575,2]
[352128501,1738956649349,-500.0,0.00016575,2]
[352128503,1738956649360,-659.78,0.00016575,2]
[352128505,1738956649372,-325.37027029,0.00016575,2]
[352128507,1738956649383,-500.0,0.00016575,2]
[352128509,1738956649394,-500.0,0.00016575,2]
[352128511,1738956649405,-500.0,0.00016575,2]
[352128513,1738956649416,-500.0,0.00016575,2]
[352128515,1738956649426,-500.0,0.00016575,2]
[352128517,1738956649436,-335.23122546,0.00016575,2]
[352128519,1738956649447,-459.02,0.00016575,2]
[352128521,1738956649458,-500.0,0.00016575,2]
[352128523,1738956649468,-500.0,0.00016575,2]
[352128525,1738956649480,-500.0,0.00016575,2]
[352128527,1738956649490,-500.0,0.00016575,2]
[352128529,1738956649501,-500.0,0.00016575,2]
[352128531,1738956649512,-500.0,0.00016575,2]
[352128533,1738956649524,-277.37782841,0.00016575,2]
[352128536,1738956649535,-500.0,0.00016575,2]
[352128538,1738956649544,-500.0,0.00016575,2]
[352128540,1738956649554,-513.84,0.00016575,2]
[352128542,1738956649566,-1712.36,0.00016575,2]
[352128544,1738956649578,-512.2175323,0.00016575,2]
[352128546,1738956649588,-500.0,0.00016575,2]
[352128548,1738956649599,-1938.63,0.00016575,2]
[352128550,1738956649611,-500.0,0.00016575,2]
[352128552,1738956649621,-2192.728,0.00016575,2]
[352128554,1738956649630,-192.48104351,0.00016575,2]
[352128556,1738956649642,-251.05898531,0.00016575,2]
[352128558,1738956649654,-328.92,0.00016575,2]
[352128560,1738956649664,-475.98,0.00016575,2]
[352128562,1738956649674,-1697.97,0.00016575,2]
[352128564,1738956649684,-500.0,0.00016575,2]
[352128566,1738956649694,-1225.54,0.00016575,2]
[352128568,1738956649703,-500.0,0.00016575,2]
[352128570,1738956649713,-500.0,0.00016575,2]
[352128572,1738956649723,-500.0,0.00016575,2]
[352128574,1738956649734,-676.85,0.00016575,2]
[352128576,1738956649743,-500.0,0.00016575,2]
[352128578,1738956649753,-500.0,0.00016575,2]
[352128580,1738956649765,-1685.31,0.00016575,60]
[352128582,1738956649774,-500.0,0.00016575,2]
[352128584,1738956649784,-541.77,0.00016575,2]
[352128586,1738956649794,-500.0,0.00016575,2]
[352128588,1738956649803,-667.78,0.00016575,2]
[352128590,1738956649814,-573.49,0.00016575,2]
[352128592,1738956649823,-500.0,0.00016575,2]
[352128594,1738956649833,-1308.11,0.00016575,2]
[352128596,1738956649843,-1722.81,0.00016575,2]
[352128598,1738956649853,-500.0,0.00016575,2]
[352128600,1738956649863,-925.93,0.00016575,2]
[352128602,1738956649873,-500.0,0.00016575,2]
[352128604,1738956649882,-1095.49,0.00016575,2]
[352128606,1738956649893,-649.37,0.00016575,2]
[352128608,1738956649903,-500.0,0.00016575,2]
[352128610,1738956649912,-776.83,0.00016575,2]
[352128612,1738956649922,-1010.35,0.00016575,2]
[352128614,1738956649932,-500.0,0.00016575,2]
[352128616,1738956649942,-1263.77,0.00016575,2]
[352128618,1738956649951,-500.0,0.00016575,2]
[352128621,1738956649961,-500.0,0.00016575,2]
[352128623,1738956649970,-500.0,0.00016575,2]
[352128625,1738956649980,-500.0,0.00016575,2]
[352128626,1738956649990,-500.0,0.00016575,2]
[352128628,1738956649999,-500.0,0.00016575,2]
[352128630,1738956650009,-500.0,0.00016575,2]
[352128633,1738956650021,-1637.13,0.00016575,2]
[352128635,1738956650030,-694.17,0.00016575,2]
[352128637,1738956650040,-500.0,0.00016575,2]
[352128639,1738956650050,-500.0,0.00016575,2]
[352128641,1738956650059,-730.01,0.00016575,2]
[352128643,1738956650068,-500.0,0.00016575,2]
[352128645,1738956650077,-500.0,0.00016575,2]
[352128647,1738956650087,-500.0,0.00016575,2]
[352128648,1738956650096,-1444.08,0.00016575,2]
[352128651,1738956650106,-500.0,0.00016575,2]
[352128652,1738956650116,-500.0,0.00016575,2]
[352128654,1738956650125,-500.0,0.00016575,2]
[352128656,1738956650135,-712.73,0.00016575,2]
[352128658,1738956650144,-500.0,0.00016575,2]
[352128660,1738956650155,-501.30155835,0.00016575,2]
[352128663,1738956650165,-500.0,0.00016575,2]
[352128665,1738956650175,-500.0,0.00016575,2]
[352128667,1738956650185,-500.0,0.00016575,2]
[352128669,1738956650196,-500.0,0.00016575,2]
[352128671,1738956650205,-500.0,0.00016575,2]
[352128673,1738956650215,-1676.26,0.00016575,2]
[352128675,1738956650225,-500.0,0.00016575,2]
[352128677,1738956650235,-500.0,0.00016575,2]
[352128679,1738956650244,-500.0,0.00016575,2]
[352128681,1738956650254,-500.0,0.00016575,2]
[352128683,1738956650263,-500.0,0.00016575,2]
[352128685,1738956650273,-500.0,0.00016575,2]
[352128687,1738956650283,-1138.99,0.00016575,2]
[352128689,1738956650293,-500.0,0.00016575,2]
[352128691,1738956650303,-500.0,0.00016575,2]
[352128693,1738956650313,-500.0,0.00016575,2]
[352128695,1738956650323,-500.0,0.00016575,2]
[352128697,1738956650333,-500.0,0.00016575,2]
[352128699,1738956650343,-500.0,0.00016575,2]
[352128701,1738956650353,-500.0,0.00016575,2]
[352128720,1738956650530,-1316.0,0.00016575,2]
[352128722,1738956650543,-406.61,0.00016575,2]
[352128724,1738956650553,-725.14,0.00016575,2]
[352128726,1738956650563,-500.0,0.00016575,2]
[352128728,1738956650576,-500.0,0.00016575,2]
[352128730,1738956650586,-1188.45,0.00016575,2]
[352128732,1738956650595,-500.0,0.00016575,2]
[352128734,1738956650607,-516.4,0.00016575,2]
[352128736,1738956650616,-510.03,0.00016575,2]
[352128738,1738956650626,-500.0,0.00016575,2]
[352128740,1738956650635,-500.0,0.00016575,2]
[352128742,1738956650645,-500.0,0.00016575,2]
[352128744,1738956650654,-1472.92,0.00016575,2]
[352128746,1738956650664,-500.0,0.00016575,2]
[352128748,1738956650673,-1412.12,0.00016575,2]
[352128750,1738956650682,-500.0,0.00016575,2]
[352128752,1738956650692,-500.0,0.00016575,2]
[352128754,1738956650702,-529.81,0.00016575,2]
[352128756,1738956650711,-500.0,0.00016575,2]
[352128758,1738956650720,-500.0,0.00016575,2]
[352128760,1738956650730,-981.75,0.00016575,2]
[352128762,1738956650740,-520.02,0.00016575,2]
[352128764,1738956650750,-647.02,0.00016575,2]
[352128766,1738956650759,-331.43,0.00016575,2]
[352128768,1738956650770,-1033.68,0.00016575,2]
[352128770,1738956650779,-523.86684076,0.00016575,2]
[352128772,1738956650788,-500.0,0.00016575,2]
[352128774,1738956650798,-500.0,0.00016575,2]
[352128776,1738956650807,-522.48,0.00016575,2]
[352128778,1738956650817,-500.0,0.00016575,2]
[352128780,1738956650827,-662.32,0.00016575,2]
[352128782,1738956650836,-1353.23,0.00016575,2]
[352128784,1738956650845,-508.39,0.00016575,2]
[352128786,1738956650856,-1634.27,0.00016575,2]
[352128788,1738956650864,-500.0,0.00016575,2]
[352128790,1738956650873,-500.0,0.00016575,2]
[352128792,1738956650882,-535.98,0.00016575,2]
[352128794,1738956650892,-544.73,0.00016575,2]
[352128796,1738956650902,-529.48,0.00016575,2]
[352128798,1738956650911,-500.0,0.00016575,2]
[352128800,1738956650921,-939.05,0.00016575,2]
[352128802,1738956650930,-1428.68,0.00016575,2]
[352128804,1738956650939,-500.0,0.00016575,2]
[352128806,1738956650948,-690.69,0.00016575,2]
[352128808,1738956650958,-1130.37,0.00016575,2]
[352128810,1738956650967,-500.0,0.00016575,2]
[352128812,1738956650976,-500.0,0.00016575,2]
[352128814,1738956650985,-1381.35,0.00016575,2]
[352128816,1738956650995,-580.24,0.00016575,2]
[352128818,1738956651005,-500.0,0.00016575,2]
[352128820,1738956651016,-1489.45,0.00016575,2]
[352128822,1738956651026,-500.0,0.00016575,2]
[352128824,1738956651035,-500.0,0.00016575,2]
[352128826,1738956651045,-1435.35,0.00016575,2]
[352128828,1738956651055,-1168.21,0.00016575,2]
[352128830,1738956651064,-3966.24,0.00016575,2]
[352128832,1738956651073,-648.0,0.00016575,2]
[352128833,1738956651083,-1165.23,0.00016575,2]
[352128834,1738956651094,-500.0,0.00016575,2]
[352128835,1738956651104,-7619.928368,0.00016575,2]
[352128836,1738956651114,-2615.59,0.00016575,2]
[352128837,1738956651123,-500.0,0.00016575,2]
[352128838,1738956651132,-830.58,0.00016575,2]
[352128839,1738956651142,-2112.58,0.00016575,2]
[352128840,1738956651151,-500.0,0.00016575,2]
[352128841,1738956651161,-1540.26,0.00016575,2]
[352128842,1738956651170,-7033.655455,0.00016575,2]
[352128843,1738956651180,-1751.47,0.00016575,2]
[352128845,1738956651189,-1387.93,0.00016575,2]
[352128847,1738956651199,-2850.19,0.00016575,2]
[352128849,1738956651208,-500.0,0.00016575,2]
[352128851,1738956651218,-603.96,0.00016575,2]
[352128853,1738956651227,-2172.91,0.00016575,2]
[352128855,1738956651237,-191.528324,0.00016575,2]
[352128857,1738956651246,-1335.8,0.00016575,2]
[352128859,1738956651256,-1670.17,0.00016575,2]
[352128861,1738956651267,-500.0,0.00016575,2]
[352128863,1738956651276,-500.0,0.00016575,2]
[352128865,1738956651286,-1813.96,0.00016575,2]
[352128867,1738956651296,-500.0,0.00016575,2]
[352128869,1738956651305,-500.0,0.00016575,2]
[352128871,1738956651315,-1815.88,0.00016575,2]
[352128873,1738956651325,-1078.85,0.00016575,2]
[352128875,1738956651334,-500.0,0.00016575,2]
[352128878,1738956651344,-650.97,0.00016575,2]
[352128880,1738956651355,-1933.83,0.00016575,2]
[352128882,1738956651364,-1477.72,0.00016575,2]
[352128883,1738956651374,-520.8,0.00016575,2]
[352128886,1738956651384,-500.0,0.00016575,2]
[352128888,1738956651393,-1313.81,0.00016575,2]
[352128890,1738956651403,-618.23,0.00016575,2]
[352128892,1738956651412,-500.0,0.00016575,2]
[352128894,1738956651422,-831.306402,0.00016575,2]
[352128896,1738956651431,-2982.88,0.00016575,2]
[352128898,1738956651440,-500.0,0.00016575,2]
[352128899,1738956651450,-500.0,0.00016575,2]
[352128901,1738956651460,-500.0,0.00016575,2]
[352128903,1738956651469,-500.0,0.00016575,2]
[352128905,1738956651479,-523.72,0.00016575,2]
[352128907,1738956651488,-500.0,0.00016575,2]
[352128910,1738956651504,-572.528237,0.00016575,2]
[352128912,1738956651516,-1656.24,0.00016575,2]